[Event "1000GM MLK Day RR IM-Norm 2024"]
[Site "Sunnyvale"]
[Date "2024.01.21"]
[Round "8.1"]
[White "Deng, Henry"]
[Black "Arenas, David"]
[Result "0-1"]
[ECO "B23"]
[WhiteElo "2281"]
[BlackElo "2406"]
[Annotator "RC"]
[PlyCount "118"]
[EventDate "2024.01.12"]
[EventType "tourn"]
[EventCountry "USA"]
[SourceTitle "playchess.com"]
[Source "ChessBase"]
[SourceQuality "1"]
[TimeControl "5400+30"]

1. e4 {[%emt 0:00:01]} c5 {[%emt 0:15:56]} 2. Nc3 {[%emt 0:00:07]} d6 {[%emt 0:00:08]} 3. Bb5+ {[%emt 0:00:04]} Bd7 {[%emt 0:00:21]} 4. Bxd7+ {[%emt 0:00:05]} Qxd7 {[%emt 0:00:07]} 5. d4 {[%emt 0:00:03]} cxd4 {[%emt 0:00:09]} 6. Qxd4 {[%emt 0:00:03]} Nc6 {[%emt 0:00:05]} 7. Qd3 {[%emt 0:00:02]} g6 {[%emt 0:00:07]} 8. Nf3 {[%emt 0:00:07]} Bg7 {[%emt 0:00:05]} 9. O-O {[%emt 0:00:04]} Nf6 {[%emt 0:00:07]} 10. Nd5 {[%emt 0:00:02]} O-O {[%emt 0:00:11]} 11. c3 {[%emt 0:00:49]} Nh5 {[%emt 0:00:07]} 12. Nf4 {[%emt 0:00:33]} Nxf4 {[%emt 0:01:25]} 13. Bxf4 {[%emt 0:00:04]} Rac8 {[%emt 0:00:22]} 14. Rad1 {[%emt 0:01:03]} Qc7 {[%emt 0:01:02]} 15. Rfe1 {[%emt 0:03:10]} a6 {[%emt 0:02:26]} 16. Qd5 {[%emt 0:02:16]} Rfd8 {[%emt 0:04:46]} 17. h4 {[%emt 0:01:32]} e6 {[%emt 0:04:53]} 18. Qd3 {[%emt 0:02:43]} Qa5 {[%emt 0:00:44]} 19. a3 {[%emt 0:02:03]} d5 {[%emt 0:01:48]} 20. Qe2 {[%emt 0:07:33]} d4 {[%emt 0:11:10]} 21. cxd4 {[%emt 0:00:51]} Nxd4 {[%emt 0:01:02]} 22. Nxd4 {[%emt 0:01:13]} Rxd4 {[%emt 0:02:42]} 23. Rxd4 {[%emt 0:01:11]} Bxd4 {[%emt 0:00:02]} 24. Rd1 {[%emt 0:00:51]} Qb6 {[%emt 0:03:59]} 25. b4 {[%emt 0:07:11]} h5 {[%emt 0:02:09]} 26. Bc1 {[%emt 0:03:56]} e5 {[%emt 0:05:20]} 27. Kf1 {[%emt 0:06:15]} Qf6 {[%emt 0:04:55]} 28. Bg5 {[%emt 0:05:27]} Qe6 {[%emt 0:02:43]} 29. Rc1 {[%emt 0:03:51]} Rxc1+ {[%emt 0:01:04]} 30. Bxc1 {[%emt 0:00:02]} Qb3 {[%emt 0:00:11]} 31. Qd2 {[%emt 0:02:19]} b5 {[%emt 0:01:50]} 32. Ke2 {[%emt 0:03:33]} Qc4+ {[%emt 0:01:29]} 33. Kf3 {[%emt 0:00:43]} Qe6 {[%emt 0:01:43]} 34. Qg5 {[%emt 0:00:56]} Qb3+ {[%emt 0:00:09]} 35. Ke2 {[%emt 0:00:37]} Qc2+ {[%emt 0:00:46]} 36. Bd2 {[%emt 0:00:26]} Qxe4+ {[%emt 0:00:12]} 37. Kf1 {[%emt 0:00:33]} Qb1+ {[%emt 0:01:33]} 38. Ke2 {[%emt 0:00:10]} Qc2 {[%emt 0:00:12]} 39. Ke1 {[%emt 0:01:00]} Bc3 {[%emt 0:01:51]} 40. Bxc3 {[%emt 0:01:03]} Qxc3+ {[%emt 0:00:03]} 41. Ke2 {[%emt 0:00:57]} Qxa3 {[%emt 0:01:43]} 42. Qd8+ {[%emt 0:00:11]} Kg7 {[%emt 0:00:07]} 43. Qd6 {[%emt 0:00:08]} Qb2+ {[%emt 0:00:35]} 44. Kf1 {[%emt 0:00:59]} Qd4 {[%emt 0:02:31]} 45. Qxd4 {[%emt 0:01:06]} exd4 {[%emt 0:00:01]} 46. Ke2 {[%emt 0:00:09]} Kf6 {[%emt 0:00:01]} 47. Kd3 {[%emt 0:00:10]} Ke5 {[%emt 0:00:02]} 48. f3 {[%emt 0:00:07]} f5 {[%emt 0:01:03]} 49. g3 {[%emt 0:00:20]} f4 {[%emt 0:00:52]} 50. gxf4+ {[%emt 0:01:23]} Kxf4 {[%emt 0:00:06]} 51. Kxd4 {[%emt 0:00:02]} Kxf3 {[%emt 0:00:21]} 52. Kc5 {[%emt 0:00:04]} Kg4 {[%emt 0:00:03]} 53. Kb6 {[%emt 0:00:03]} Kxh4 {[%emt 0:00:10]} 54. Kxa6 {[%emt 0:00:08]} g5 {[%emt 0:00:19]} 55. Kxb5 {[%emt 0:00:22]} g4 {[%emt 0:00:04]} 56. Kc6 {[%emt 0:00:03]} g3 {[%emt 0:00:03]} 57. b5 {[%emt 0:00:08]} g2 {[%emt 0:00:03]} 58. b6 {[%emt 0:00:09]} g1=Q {[%emt 0:00:06]} 59. b7 {[%emt 0:00:01]} Qg3 {[%emt 0:00:08]} 0-1

[Event "1000GM MLK Day RR IM-Norm 2024"]
[Site "Sunnyvale"]
[Date "2024.01.21"]
[Round "8.2"]
[White "Tang, Dylan"]
[Black "Delgado Ramirez, Neuris"]
[Result "0-1"]
[ECO "B55"]
[WhiteElo "2206"]
[BlackElo "2517"]
[Annotator "TA"]
[PlyCount "92"]
[EventDate "2024.01.12"]
[EventType "tourn"]
[EventCountry "USA"]
[SourceTitle "playchess.com"]
[Source "ChessBase"]
[SourceQuality "1"]
[TimeControl "5400+30"]

{[%evp 12,92,12,33,16,25,43,15,36,41,37,50,51,14,21,22,11,0,0,0,0,-6,0,0,0,-15,0,-29,-12,-12,-13,-58,-55,-57,-55,-57,-57,-56,-55,-56,-56,-63,-64,-89,-77,-142,-120,-120,-105,-105,-112,-181,-181,-181,-170,-145,-145,-145,-88,-77,-70,-142,-117,-383,-365,-365,-254,-29956,-12798,-9635,-29953,-29940,-12672,-12821,-10702,-9142,-6651,-29969,-29965,-6079,-5501,-5485,-2731]} 1. e4 {[%emt 0:00:02]} c5 {[%emt 0:16:08]} 2. Nf3 {[%emt 0:00:15][%cal Bg1f3,Bf3d4,Bd4b3,Bb3c1][%mdl 32]} d6 {[%emt 0:00:04]} 3. d4 {[%emt 0:00:05]} cxd4 {[%emt 0:00:05]} 4. Nxd4 {[%emt 0:00:06]} Nf6 {[%emt 0:00:05]} 5. f3 {[%emt 0:00:08]} e5 {[%emt 0:00:08]} 6. Nb3 {[%emt 1:32:54]} Be6 {[%emt 0:01:23]} 7. c4 {[%emt 0:00:00]} a5 {[%emt 0:00:46][%cal Of6e4]} ({Resist} 7... Nxe4 8. fxe4 Qh4+ 9. Kd2 $16) 8. Be3 {[%emt 0:00:00]} a4 {[%emt 0:01:06]} 9. Nc1 {[%emt 0:00:00]} Nc6 {[%emt 0:01:50] The position is equal.} 10. Nc3 {[%emt 0:00:00]} Qa5 {[%emt 0:00:03]} 11. Qd2 {[%emt 0:00:00]} Be7 {[%emt 1:14:22]} 12. Bd3 {[%emt 0:03:00]} O-O {[%emt 0:00:30]} 13. O-O {[%emt 0:00:00]} Bd8 {[%emt 0:00:30]} 14. Nd5 {[%emt 0:00:00]} Qxd2 {[%emt 0:00:00]} 15. Bxd2 {[%emt 0:00:00]} Nd7 {[%emt 0:00:00]} 16. b4 {[%emt 0:00:00]} axb3 {[%emt 0:00:00]} 17. Nxb3 {[%emt 0:00:00]} Ra4 {[%emt 0:00:00]} 18. Rfc1 {[%emt 0:00:00]} h6 {[%emt 0:00:00]} 19. g3 {[%emt 0:00:00]} Bxd5 {[%emt 0:00:00]} 20. cxd5 {[%emt 0:00:00]} Nd4 {[%emt 0:00:00]} 21. Kf2 {[%emt 0:00:00]} Bb6 {[%emt 0:00:00]} 22. Be3 $1 {[%emt 0:00:00]} Rfa8 {[%emt 0:00:00] White must now prevent ...Nxb3.} 23. Bxd4 {[%emt 0:00:00]} Bxd4+ {[%emt 0:00:00]} ({Much weaker is} 23... Rxa2+ 24. Rxa2 Rxa2+ 25. Kf1 exd4 26. Rc8+ Nf8 27. e5 dxe5 28. d6 $11) 24. Nxd4 {[%emt 0:00:00]} Rxd4 {[%emt 0:00:00]} 25. Ke2 {[%emt 0:00:00]} Nc5 $36 {[%emt 0:00:00][%mdl 2048] Black has the initiative.} 26. Rc3 {[%emt 0:00:00]} g5 {[%emt 0:00:00][%cal Og5g4]} 27. g4 {[%emt 0:00:00]} Kg7 {[%emt 0:00:00]} 28. Bc2 {[%emt 0:00:00] [#]} (28. a3 $142) 28... h5 $1 {[%emt 0:00:00][%mdl 512] Strongly threatening ...hxg4. Black is more active.} 29. h3 {[%emt 0:00:00]} (29. gxh5 b5) 29... hxg4 {[%emt 0:00:00]} 30. hxg4 {[%emt 0:00:00]} b5 {[%emt 0:00:00]} 31. a3 {[%emt 0:00:00]} (31. Re3 $17 {might work better.}) 31... b4 $19 {[%emt 0:00:00]} 32. axb4 {[%emt 0:00:00]} Nxe4 {[%emt 0:00:00]} 33. Rxa8 {[%emt 0:00:00]} Nxc3+ {[%emt 0:00:00][%mdl 4096] Endgame KRB-KRN} 34. Ke1 {[%emt 0:00:00]} Nxd5 {[%emt 0:00:00]} ({Black should play} 34... Rxb4 35. Ra6 Rf4) 35. b5 $17 {[%emt 0:00:00]} Ne3 {[%emt 0:00:00]} 36. Be4 {[%emt 0:00:00]} (36. Ra2 $15) 36... d5 {[%emt 0:00:00][%cal Bd6d5,Bd5e4][%mdl 32]} 37. b6 $2 {[%emt 0:00:00][%mdl 8192] Now White is beyond hope.} dxe4 $19 {[%emt 0:00:00] KRN-KR} 38. b7 {[%emt 0:00:00] [#]} Rb4 $1 {[%emt 0:00:00]} (38... exf3 $2 39. b8=Q (39. b8=B $2 {loses.} Nxg4 40. Ra1 Rb4 $19) 39... Nxg4 40. Qg8+ Kf6 41. Ra6+ Kf5 42. Qxf7+ Ke4 43. Ra5 $18) 39. b8=Q $2 {[%emt 0:00:00] Repels exf3} (39. Ke2 $19 Rxb7 40. Kxe3) 39... Rxb8 {[%emt 0:00:00]} 40. Rxb8 {[%emt 0:00:00]} exf3 {[%emt 0:00:00] KR-KN} 41. Kf2 {[%emt 0:00:00]} Nxg4+ {[%emt 0:00:00]} 42. Kxf3 {[%emt 0:00:00]} f5 {[%emt 0:00:00][%cal Bf7f5,Bf5f4][%mdl 32]} 43. Rb6 {[%emt 0:00:00]} Nf6 {[%emt 0:15:00]} 44. Kf2 {[%emt 0:16:00]} Kg6 {[%emt 0:00:00]} 45. Kg2 {[%emt 0:00:00]} g4 {[%emt 0:00:00]} 46. Kf2 {[%emt 0:00:00]} f4 {[%emt 0:00:00] Weighted Error Value: White=0.48/Black=0.31} 0-1

[Event "1000GM MLK Day RR IM-Norm 2024"]
[Site "Sunnyvale"]
[Date "2024.01.21"]
[Round "8.3"]
[White "Guo, Ethan"]
[Black "Chiang, Jacob"]
[Result "1-0"]
[ECO "B67"]
[WhiteElo "2099"]
[BlackElo "2200"]
[Annotator "RC"]
[PlyCount "101"]
[EventDate "2024.01.12"]
[EventType "tourn"]
[EventCountry "USA"]
[SourceTitle "playchess.com"]
[Source "ChessBase"]
[SourceQuality "1"]
[TimeControl "5400+30"]

1. e4 {[%emt 0:00:47]} c5 {[%emt 0:00:04]} 2. Nf3 {[%emt 1:30:43]} Nc6 {[%emt 0:00:03]} 3. d4 {[%emt 0:00:00]} cxd4 {[%emt 0:00:03]} 4. Nxd4 {[%emt 0:00:00]} Nf6 {[%emt 0:00:02]} 5. Nc3 {[%emt 0:00:00]} d6 {[%emt 0:00:03]} 6. Bg5 {[%emt 0:00:00]} e6 {[%emt 0:00:08]} 7. Qd2 {[%emt 0:00:00]} a6 {[%emt 0:00:03]} 8. O-O-O {[%emt 0:00:00]} Bd7 {[%emt 0:00:10]} 9. f3 {[%emt 0:00:00]} b5 {[%emt 0:03:47]} 10. Nxc6 {[%emt 0:00:00]} Bxc6 {[%emt 0:00:04]} 11. h4 {[%emt 0:00:00]} h6 {[%emt 0:01:34]} 12. Be3 {[%emt 0:00:00]} h5 {[%emt 0:01:32]} 13. Bf4 {[%emt 0:00:00]} b4 {[%emt 0:00:40]} 14. Ne2 {[%emt 0:00:00]} e5 {[%emt 0:00:24]} 15. Bg5 {[%emt 0:00:00]} Qa5 {[%emt 0:07:02]} 16. Kb1 {[%emt 0:00:00]} O-O-O {[%emt 0:05:10]} 17. Nc1 {[%emt 0:00:00]} d5 {[%emt 0:04:37]} 18. Nb3 {[%emt 0:00:00]} Qb6 {[%emt 0:00:29]} 19. exd5 {[%emt 0:00:00]} Rxd5 {[%emt 0:01:53]} 20. Bd3 {[%emt 0:00:00]} Be7 {[%emt 0:05:35]} 21. Qe2 {[%emt 0:00:00]} Bb5 {[%emt 0:10:01]} 22. Bxb5 {[%emt 0:00:00]} Qxb5 {[%emt 0:00:39]} 23. Qe3 {[%emt 0:00:00]} Rhd8 {[%emt 0:01:40]} 24. Rxd5 {[%emt 0:00:00]} Nxd5 {[%emt 0:03:27]} 25. Qa7 {[%emt 0:00:00]} Qb7 {[%emt 0:03:34]} 26. Qxb7+ {[%emt 0:00:00]} Kxb7 {[%emt 0:00:05]} 27. Bxe7 {[%emt 0:00:00]} Nxe7 {[%emt 0:00:04]} 28. Kc1 {[%emt 0:00:00]} Kc6 {[%emt 0:02:20]} 29. Re1 {[%emt 0:00:00]} Rd5 {[%emt 0:02:17]} 30. Re4 {[%emt 0:00:00]} a5 {[%emt 0:00:46]} 31. a3 {[%emt 0:00:00]} Kb5 {[%emt 0:02:27]} 32. c4+ {[%emt 0:00:00]} bxc3 {[%emt 0:00:18]} 33. bxc3 {[%emt 0:00:00]} Kb6 {[%emt 0:13:34]} 34. c4 {[%emt 0:00:00]} Rd8 {[%emt 0:00:37]} 35. Rxe5 {[%emt 0:00:00]} Nc6 {[%emt 0:00:05]} 36. Rb5+ {[%emt 0:00:00]} Kc7 {[%emt 0:01:33]} 37. Nxa5 {[%emt 0:00:00]} Rd4 {[%emt 0:00:49]} 38. Nxc6 {[%emt 0:00:00]} Rxc4+ {[%emt 0:00:40]} 39. Kb2 {[%emt 0:00:00]} Kxc6 {[%emt 0:01:03]} 40. Rxh5 {[%emt 0:00:00]} Rd4 {[%emt 0:00:12]} 41. Kc3 {[%emt 0:00:00]} Ra4 {[%emt 0:00:36]} 42. Rh7 {[%emt 0:00:00]} Kc5 {[%emt 0:06:38]} 43. Kb3 {[%emt 0:00:00]} Rd4 {[%emt 0:00:43]} 44. Rxg7 {[%emt 0:00:00]} Rd3+ {[%emt 0:00:07]} 45. Kb2 {[%emt 0:00:00]} f5 {[%emt 0:00:35]} 46. h5 {[%emt 0:00:00]} Kc4 {[%emt 0:00:20]} 47. h6 {[%emt 0:00:00]} Rb3+ {[%emt 0:00:59]} 48. Ka2 {[%emt 0:00:00]} Re3 {[%emt 0:00:32]} 49. h7 {[%emt 0:00:00]} Re2+ {[%emt 0:00:12]} 50. Kb1 {[%emt 0:00:00]} Kc3 {[%emt 0:01:03]} 51. Rc7+ {[%emt 0:00:00]} 1-0

[Event "1000GM MLK Day RR IM-Norm 2024"]
[Site "Sunnyvale"]
[Date "2024.01.21"]
[Round "8.4"]
[White "Figueredo Losada, Leonel"]
[Black "Bansal, Advay"]
[Result "1-0"]
[ECO "B98"]
[WhiteElo "2381"]
[BlackElo "2253"]
[Annotator "RC"]
[PlyCount "95"]
[EventDate "2024.01.12"]
[EventType "tourn"]
[EventCountry "USA"]
[SourceTitle "playchess.com"]
[Source "ChessBase"]
[SourceQuality "1"]
[TimeControl "5400+30"]

1. e4 {[%emt 0:06:35]} c5 {[%emt 0:00:09]} 2. Nf3 {[%emt 0:00:15]} d6 {[%emt 0:00:07]} 3. d4 {[%emt 0:00:03]} cxd4 {[%emt 0:00:06]} 4. Nxd4 {[%emt 0:00:02]} Nf6 {[%emt 0:00:08]} 5. Nc3 {[%emt 0:00:02]} a6 {[%emt 0:00:09]} 6. Bg5 {[%emt 0:00:03]} e6 {[%emt 0:00:10]} 7. Qd3 {[%emt 0:00:03]} Be7 {[%emt 0:05:26]} 8. f4 {[%emt 0:00:47]} Qc7 {[%emt 0:00:29]} 9. O-O-O {[%emt 0:00:07]} Nbd7 {[%emt 0:01:18]} 10. Be2 {[%emt 0:01:19]} b5 {[%emt 0:03:56]} 11. Bf3 {[%emt 0:00:09]} Bb7 {[%emt 0:04:46]} 12. Bxf6 {[%emt 0:06:05]} Nxf6 {[%emt 0:04:58]} 13. e5 {[%emt 0:00:08]} dxe5 {[%emt 0:02:48]} 14. Ndxb5 {[%emt 0:00:05]} axb5 {[%emt 0:19:58]} 15. Qxb5+ {[%emt 0:00:05]} Kf8 {[%emt 0:00:43]} 16. Qxb7 {[%emt 0:08:41]} Qxb7 {[%emt 0:00:11]} 17. Bxb7 {[%emt 0:00:05]} Rb8 {[%emt 0:00:18]} 18. fxe5 {[%emt 0:06:15]} Rxb7 {[%emt 0:08:33]} 19. exf6 {[%emt 0:00:05]} Bxf6 {[%emt 0:00:07]} 20. Rd3 {[%emt 0:00:11]} Ke7 {[%emt 0:02:27]} 21. Re1 {[%emt 0:00:49]} Bg5+ {[%emt 0:03:23]} 22. Kb1 {[%emt 0:00:06]} Rc8 {[%emt 0:03:47]} 23. a4 {[%emt 0:02:20]} f5 {[%emt 0:10:23]} 24. Nb5 {[%emt 0:01:03]} Bf6 {[%emt 0:00:23]} 25. b3 {[%emt 0:00:32]} Rc6 {[%emt 0:04:12]} 26. c4 {[%emt 0:01:06]} g6 {[%emt 0:00:14]} 27. Kc2 {[%emt 0:02:37]} e5 {[%emt 0:00:47]} 28. Rd5 {[%emt 0:00:31]} h5 {[%emt 0:01:50]} 29. c5 {[%emt 0:01:12]} e4 {[%emt 0:02:10]} 30. b4 {[%emt 0:00:22]} Ke6 {[%emt 0:01:34]} 31. Rdd1 {[%emt 0:00:33]} Ke7 {[%emt 0:06:39]} 32. Kb3 {[%emt 0:00:25]} Be5 {[%emt 0:00:35]} 33. Kc4 {[%emt 0:05:40]} Bxh2 {[%emt 0:02:21]} 34. Nd4 {[%emt 0:00:08]} Rc8 {[%emt 0:01:11]} 35. b5 {[%emt 0:01:11]} Ra7 {[%emt 0:06:10]} 36. Kb4 {[%emt 0:03:31]} Rd7 {[%emt 0:00:26]} 37. Nc6+ {[%emt 0:34:28]} Ke6 {[%emt 0:00:08]} 38. a5 {[%emt 0:00:19]} Bg3 {[%emt 0:01:15]} 39. Rh1 {[%emt 0:05:09]} Rxd1 {[%emt 0:02:32]} 40. Rxd1 {[%emt 0:00:02]} e3 {[%emt 0:02:41]} 41. Nd4+ {[%emt 0:00:04]} Kf6 {[%emt 0:00:38]} 42. Ne2 {[%emt 0:00:18]} Be5 {[%emt 0:00:06]} 43. b6 {[%emt 0:00:15]} h4 {[%emt 0:00:34]} 44. b7 {[%emt 0:01:17]} Re8 {[%emt 0:01:08]} 45. a6 {[%emt 0:00:18]} Bb8 {[%emt 0:00:04]} 46. c6 {[%emt 0:00:48]} h3 {[%emt 0:00:20]} 47. a7 {[%emt 0:01:26]} Bxa7 {[%emt 0:01:09]} 48. c7 {[%emt 0:00:02]} 1-0

[Event "1000GM MLK Day RR IM-Norm 2024"]
[Site "Sunnyvale"]
[Date "2024.01.21"]
[Round "8.5"]
[White "Dominguez Aguilar, Guillermo"]
[Black "Guo, Andrew"]
[Result "0-1"]
[ECO "B31"]
[WhiteElo "2319"]
[BlackElo "2255"]
[Annotator "RC"]
[PlyCount "52"]
[EventDate "2024.01.12"]
[EventType "tourn"]
[EventCountry "USA"]
[SourceTitle "playchess.com"]
[Source "ChessBase"]
[SourceQuality "1"]
[TimeControl "5400+30"]

1. e4 {[%emt 1:31:00]} c5 {[%emt 0:00:04]} 2. Nf3 {[%emt 0:00:00]} Nc6 {[%emt 0:00:04]} 3. Bb5 {[%emt 0:00:00]} g6 {[%emt 0:00:02]} 4. O-O {[%emt 0:00:00]} Bg7 {[%emt 1:32:20]} 5. c3 {[%emt 0:00:00]} Qb6 {[%emt 0:00:00]} 6. Na3 {[%emt 0:00:00]} Nf6 {[%emt 0:01:00]} 7. Re1 {[%emt 0:00:00]} O-O {[%emt 0:00:00]} 8. h3 {[%emt 0:00:00]} Qc7 {[%emt 0:00:00]} 9. e5 {[%emt 0:00:00]} Nd5 {[%emt 0:00:00]} 10. d4 {[%emt 0:00:00]} cxd4 {[%emt 0:00:00]} 11. cxd4 {[%emt 0:00:00]} d6 {[%emt 0:00:00]} 12. Bc4 {[%emt 0:00:00]} Nb6 13. Bf4 {[%emt 0:00:00]} dxe5 {[%emt 0:00:00]} 14. dxe5 {[%emt 0:00:00]} Nxc4 {[%emt 0:00:00]} 15. Nxc4 {[%emt 0:00:00]} Be6 {[%emt 0:00:00]} 16. Rc1 {[%emt 0:00:00]} Rfd8 {[%emt 0:00:00]} 17. Qe2 {[%emt 0:00:00]} Rac8 {[%emt 0:00:00]} 18. b3 {[%emt 0:00:00]} h6 {[%emt 0:06:00]} 19. a4 {[%emt 0:00:00]} b6 {[%emt 0:00:00]} 20. Qe3 {[%emt 0:00:00]} Kh7 {[%emt 0:00:00]} 21. Nfd2 {[%emt 0:00:00]} Qb7 {[%emt 0:00:00]} 22. Qf3 {[%emt 0:00:00]} Bd5 {[%emt 0:00:00]} 23. Qg3 {[%emt 0:00:00]} Nd4 {[%emt 0:00:00]} 24. Qc3 {[%emt 0:01:11]} Bxg2 {[%emt 0:00:00]} 25. Qg3 {[%emt 0:00:54]} Bd5 {[%emt 0:00:00]} 26. Ne3 {[%emt 0:00:14]} Rxc1 {[%emt 0:00:00]} 0-1

[Event "1000GM MLK Day RR IM-Norm 2024"]
[Site "Sunnyvale"]
[Date "2024.01.22"]
[Round "9.2"]
[White "Bansal, Advay"]
[Black "Dominguez Aguilar, Guillermo"]
[Result "1-0"]
[ECO "B27"]
[WhiteElo "2253"]
[BlackElo "2319"]
[Annotator "RC"]
[PlyCount "77"]
[EventDate "2024.01.12"]
[EventType "tourn"]
[EventCountry "USA"]
[SourceTitle "playchess.com"]
[Source "ChessBase"]
[SourceQuality "1"]
[TimeControl "5400+30"]

1. e4 {[%emt 0:01:04]} c5 {[%emt 0:02:30]} 2. Nf3 {[%emt 1:30:26]} g6 {[%emt 0:01:15]} 3. d4 {[%emt 0:00:00]} cxd4 {[%emt 0:00:55]} 4. Qxd4 {[%emt 0:00:00]} Nf6 {[%emt 0:00:19]} 5. Nc3 {[%emt 0:00:00]} Nc6 {[%emt 0:00:33]} 6. Qa4 {[%emt 0:02:00]} Bg7 {[%emt 0:17:08]} 7. e5 {[%emt 0:00:00]} Ng8 {[%emt 0:00:02]} 8. Bf4 {[%emt 0:00:00]} f6 {[%emt 1:11:48]} 9. exf6 {[%emt 0:00:00]} Nxf6 {[%emt 0:00:30]} 10. O-O-O {[%emt 0:02:00]} O-O {[%emt 0:00:30]} 11. Bc4+ {[%emt 0:00:00]} Kh8 {[%emt 0:00:30]} 12. Rhe1 {[%emt 0:01:00]} d6 {[%emt 0:00:30]} 13. Ng5 {[%emt 0:00:00]} e5 {[%emt 0:00:00]} 14. Be3 {[%emt 0:00:00]} Qe7 {[%emt 0:00:00]} 15. f3 {[%emt 0:00:00]} h6 {[%emt 0:00:00]} 16. Nge4 {[%emt 0:02:00]} Nxe4 {[%emt 0:02:00]} 17. Nxe4 {[%emt 0:00:00]} Nd4 {[%emt 0:00:00]} 18. c3 {[%emt 0:00:00]} Qc7 {[%emt 0:00:00]} 19. Bd5 {[%emt 0:00:00]} a5 {[%emt 0:00:00]} 20. Qa3 {[%emt 0:00:00]} Rd8 {[%emt 0:00:00]} 21. Kb1 {[%emt 0:00:00]} Nf5 {[%emt 0:00:00]} 22. Bf2 {[%emt 0:00:00]} Ra6 {[%emt 0:00:00]} 23. Qb3 {[%emt 0:00:00]} Ne7 {[%emt 0:00:00]} 24. Bc4 {[%emt 0:00:00]} a4 {[%emt 0:00:00]} 25. Qb4 {[%emt 0:00:00]} Nc6 {[%emt 0:00:00]} 26. Qa3 {[%emt 0:00:00]} Ra5 {[%emt 0:00:00]} 27. Rxd6 {[%emt 0:00:00]} Bf8 {[%emt 0:00:00]} 28. Rxd8 {[%emt 0:00:00]} Qxd8 {[%emt 0:00:00]} 29. Bc5 {[%emt 0:00:00]} Rxc5 {[%emt 0:00:00]} 30. Nxc5 {[%emt 0:00:00]} Qd2 {[%emt 0:00:00]} 31. Rf1 {[%emt 0:00:00]} Qxg2 {[%emt 0:00:00]} 32. Qxa4 {[%emt 0:00:00]} Bxc5 {[%emt 0:00:00]} 33. Qb5 {[%emt 0:00:00]} Bf5+ {[%emt 0:00:00]} 34. Ka1 {[%emt 0:00:00]} Bf8 {[%emt 0:00:00]} 35. Qd5 {[%emt 0:00:00]} Ne7 {[%emt 0:00:00]} 36. Qxe5+ {[%emt 0:00:00]} Kh7 {[%emt 0:00:00]} 37. Qf6 {[%emt 0:00:00]} Bg7 {[%emt 0:00:00]} 38. Qxe7 {[%emt 0:00:00]} b5 {[%emt 0:00:00]} 39. Qe2 {[%emt 0:00:00]} 1-0